fUSD/lending_fUSD_20260617
["ID","MTS","AMOUNT","RATE_DAILY","PERIOD"]
[425261412,1781639450000,-327.13980551,0.00028359,7]
[425261414,1781639450000,-382.79126016,0.00028359,7]
[425261411,1781639450000,-336.79269563,0.00028359,7]
[425261413,1781639450000,-376.40335486,0.00028359,7]
[425261417,1781639450000,-173.82283146,0.00028359,7]
[425261415,1781639450000,-194.60308353,0.00028359,7]
[425261416,1781639450000,-381.00707733,0.00028359,7]
[425261418,1781639450000,-301.21245553,0.00028359,7]
[425261370,1781639450000,-593.0,0.00027671,2]
[425261395,1781639450000,-280.03725111,0.00028014,2]
[425261403,1781639450000,-183.21581671,0.00028359,7]
[425261407,1781639450000,-226.17658135,0.00028359,7]
[425261401,1781639450000,-1136.61,0.00028219,7]
[425261377,1781639450000,-50147.90079155,0.00028,2]
[425261396,1781639450000,-151.0,0.00028014,2]
[425261379,1781639450000,-643.0,0.00028,2]
[425261380,1781639450000,-600.0,0.00028,2]
[425261372,1781639450000,-152.0,0.00027819,4]
[425261375,1781639450000,-200.0,0.00027927,2]
[425261378,1781639450000,-8763.40173482,0.00028,2]
[425261371,1781639450000,-500.0,0.00027759,15]
[425261419,1781639450000,-380.00181601,0.00028359,7]
[425261383,1781639450000,-2257.764109,0.00028,7]
[425261381,1781639450000,-151.0,0.00028,7]
[425261374,1781639450000,-153.33214767,0.00027927,2]
[425261384,1781639450000,-2257.764109,0.00028,7]
[425261393,1781639450000,-154.51081299,0.00028014,2]
[425261385,1781639450000,-2257.764109,0.00028,7]
[425261391,1781639450000,-621.78829552,0.00028012,2]
[425261389,1781639450000,-151.0,0.00028,7]
[425261386,1781639450000,-2257.764105,0.00028,7]
[425261392,1781639450000,-721.12765534,0.00028012,2]
[425261387,1781639450000,-151.0,0.00028,7]
[425261388,1781639450000,-151.0,0.00028,7]
[425261390,1781639450000,-151.0,0.00028012,2]
[425261456,1781639451000,-260.4103811,0.00028562,2]
[425261443,1781639451000,-369.4995878,0.00028366,7]
[425261446,1781639451000,-1627.47,0.000284,7]
[425261440,1781639451000,-309.73660177,0.00028366,7]
[425261447,1781639451000,-190.80617437,0.00028407,2]
[425261450,1781639451000,-170.5,0.000285,7]
[425261449,1781639451000,-2991.49051684,0.00028475,2]
[425261455,1781639451000,-154.51081315,0.00028562,2]
[425261459,1781639451000,-544.0,0.00028588,7]
[425261453,1781639451000,-770.0,0.00028508,5]
[425261470,1781639451000,-684.52174,0.0002863,7]
[425261454,1781639451000,-5000.74745351,0.00028508,7]
[425261452,1781639451000,-5000.0,0.00028503,7]
[425261457,1781639451000,-290.3986294,0.00028562,2]
[425261458,1781639451000,-151.0,0.00028562,2]
[425261461,1781639451000,-1716.0,0.000286,7]
[425261462,1781639451000,-151.0,0.00028604,7]
[425261460,1781639451000,-500.0,0.00028591,16]
[425261465,1781639451000,-674.76590532,0.00028604,2]
[425261445,1781639451000,-221.8058306,0.00028366,7]
[425261451,1781639451000,-16623.98,0.000285,2]
[425261442,1781639451000,-389.88666677,0.00028366,7]
[425261421,1781639451000,-188.95727174,0.00028359,7]
[425261441,1781639451000,-315.39255271,0.00028366,7]
[425261463,1781639451000,-151.0,0.00028604,7]
[425261420,1781639451000,-226.81997709,0.00028359,7]
[425261422,1781639451000,-249.16563065,0.00028359,7]
[425261423,1781639451000,-186.5279999,0.00028359,5]
[425261425,1781639451000,-393.47214374,0.00028359,7]
[425261436,1781639451000,-365.68877964,0.00028359,7]
[425261424,1781639451000,-180.0571174,0.00028359,7]
[425261435,1781639451000,-331.96118372,0.00028359,7]
[425261426,1781639451000,-318.34170349,0.00028359,7]
[425261428,1781639451000,-325.90481767,0.00028359,7]
[425261427,1781639451000,-419.62306687,0.00028359,7]
[425261429,1781639451000,-194.7653813,0.00028359,7]
[425261433,1781639451000,-300.50465808,0.00028359,7]
[425261432,1781639451000,-325.22254477,0.00028359,5]
[425261430,1781639451000,-350.64487235,0.00028359,7]
[425261431,1781639451000,-348.26371578,0.00028359,7]
[425261434,1781639451000,-244.39051253,0.00028359,7]
[425261438,1781639451000,-382.76060968,0.00028366,7]
[425261448,1781639451000,-200.0,0.00028475,2]
[425261437,1781639451000,-331.291076,0.00028366,7]
[425261439,1781639451000,-379.94428579,0.00028366,7]
[425261444,1781639451000,-410.50409923,0.00028366,7]
[425261464,1781639451000,-219.530176,0.00028604,7]
[425261469,1781639451000,-684.52174,0.0002863,7]
[425261466,1781639451000,-2000.0,0.0002863,2]
[425261505,1781639451000,-4048.95,0.00028797,7]
[425261506,1781639451000,-2549.78,0.00028797,7]
[425261499,1781639451000,-151.15677993,0.00028774,2]
[425261503,1781639451000,-2150.76,0.00028797,7]
[425261501,1781639451000,-819.14,0.00028788,30]
[425261497,1781639451000,-173.0,0.00028767,14]
[425261500,1781639451000,-674.76590532,0.00028775,2]
[425261498,1781639451000,-193.26629191,0.00028774,2]
[425261504,1781639451000,-2124.33,0.00028797,7]
[425261496,1781639451000,-581.37258776,0.00028766,2]
[425261494,1781639451000,-819.14,0.00028756,7]
[425261507,1781639451000,-2491.99,0.00028797,7]
[425261509,1781639451000,-2886.11,0.000288,7]
[425261511,1781639451000,-674.76590532,0.00028848,2]
[425261514,1781639451000,-819.14,0.00028883,30]
[425261515,1781639451000,-200.0,0.000289,2]
[425261513,1781639451000,-674.76590532,0.00028856,2]
[425261508,1781639451000,-2160.63,0.000288,7]
[425261510,1781639451000,-819.14,0.0002882,2]
[425261512,1781639451000,-819.14,0.00028852,7]
[425261467,1781639451000,-529.49,0.0002863,2]
[425261495,1781639451000,-674.76590532,0.00028759,2]
[425261493,1781639451000,-593.0,0.00028739,3]
[425261502,1781639451000,-5013.77,0.00028797,7]
[425261491,1781639451000,-201.93121012,0.00028705,7]
[425261468,1781639451000,-684.52174,0.0002863,7]
[425261490,1781639451000,-869.24,0.00028693,30]
[425261472,1781639451000,-151.0,0.0002863,7]
[425261473,1781639451000,-151.0,0.0002863,7]
[425261474,1781639451000,-151.0,0.0002863,7]
[425261481,1781639451000,-2549.78,0.0002863,30]
[425261476,1781639451000,-5013.77,0.0002863,30]
[425261480,1781639451000,-819.14,0.0002863,2]
[425261478,1781639451000,-2124.33,0.0002863,30]
[425261477,1781639451000,-2150.76,0.0002863,30]
[425261471,1781639451000,-684.52174,0.0002863,7]
[425261484,1781639451000,-6078.0,0.00028657,2]
[425261492,1781639451000,-819.14,0.00028725,2]
[425261475,1781639451000,-206.649624,0.0002863,7]
[425261488,1781639451000,-674.76590532,0.0002867,2]
[425261487,1781639451000,-869.24,0.00028661,7]
[425261485,1781639451000,-1362.15111286,0.00028661,2]
[425261489,1781639451000,-819.14,0.00028693,30]
[425261486,1781639451000,-819.14,0.00028661,7]
[425261483,1781639451000,-869.24,0.0002863,2]
[425261482,1781639451000,-2491.99,0.0002863,30]
[425261479,1781639451000,-4048.95,0.0002863,30]
[425261554,1781639452000,-200.0,0.00029,2]
[425261556,1781639452000,-200.0,0.00029,2]
[425261557,1781639452000,-200.0,0.00029,2]
[425261559,1781639452000,-200.0,0.00029,2]
[425261555,1781639452000,-200.0,0.00029,2]
[425261543,1781639452000,-876.603178,0.00029,7]
[425261545,1781639452000,-200.0,0.00029,2]
[425261552,1781639452000,-200.0,0.00029,2]
[425261547,1781639452000,-200.0,0.00029,2]
[425261542,1781639452000,-876.603178,0.00029,7]
[425261560,1781639452000,-200.0,0.00029,2]
[425261553,1781639452000,-200.0,0.00029,2]
[425261558,1781639452000,-200.0,0.00029,2]
[425261572,1781639452000,-500.0,0.00029,2]
[425261562,1781639452000,-200.0,0.00029,2]
[425261564,1781639452000,-200.0,0.00029,2]
[425261574,1781639452000,-500.0,0.00029,2]
[425261563,1781639452000,-200.0,0.00029,2]
[425261575,1781639452000,-500.0,0.00029,2]
[425261566,1781639452000,-200.0,0.00029,2]
[425261567,1781639452000,-200.0,0.00029,2]
[425261565,1781639452000,-200.0,0.00029,2]
[425261571,1781639452000,-500.0,0.00029,2]
[425261570,1781639452000,-500.0,0.00029,2]
[425261568,1781639452000,-200.0,0.00029,2]
[425261550,1781639452000,-200.0,0.00029,2]
[425261561,1781639452000,-200.0,0.00029,2]
[425261549,1781639452000,-200.0,0.00029,2]
[425261523,1781639452000,-2549.78,0.00028964,2]
[425261548,1781639452000,-200.0,0.00029,2]
[425261517,1781639452000,-674.76590532,0.00028944,2]
[425261516,1781639452000,-819.14,0.00028915,2]
[425261518,1781639452000,-819.14,0.00028947,7]
[425261520,1781639452000,-2150.76,0.00028964,2]
[425261519,1781639452000,-5013.77,0.00028964,2]
[425261521,1781639452000,-2124.33,0.00028964,2]
[425261528,1781639452000,-300.0,0.00028999,10]
[425261526,1781639452000,-280.24417979,0.0002899,2]
[425261522,1781639452000,-4048.95,0.00028964,2]
[425261524,1781639452000,-2491.99,0.00028964,2]
[425261529,1781639452000,-42526.05530497,0.00029,2]
[425261527,1781639452000,-674.76590532,0.00028991,2]
[425261525,1781639452000,-819.14,0.00028979,30]
[425261531,1781639452000,-220.03448658,0.00029,2]
[425261530,1781639452000,-257.59063104,0.00029,2]
[425261533,1781639452000,-22851.35665026,0.00029,2]
[425261535,1781639452000,-878.27299889,0.00029,2]
[425261536,1781639452000,-400.0,0.00029,2]
[425261532,1781639452000,-157.30076928,0.00029,2]
[425261538,1781639452000,-151.0,0.00029,7]
[425261573,1781639452000,-500.0,0.00029,2]
[425261534,1781639452000,-400.52347901,0.00029,2]
[425261539,1781639452000,-8921.16794298,0.00029,2]
[425261541,1781639452000,-151.0,0.00029,7]
[425261540,1781639452000,-876.603178,0.00029,7]
[425261551,1781639452000,-200.0,0.00029,2]
[425261546,1781639452000,-200.0,0.00029,2]
[425261544,1781639452000,-876.603178,0.00029,7]
[425261569,1781639452000,-222.38,0.00029,2]
[425261537,1781639452000,-1355.86383868,0.00029,2]
[425261579,1781639452000,-1002.51147075,0.00029,2]
[425261615,1781639452000,-16623.98,0.000291,2]
[425261609,1781639452000,-1073.87,0.00029041,7]
[425261607,1781639452000,-1091.54,0.00029041,7]
[425261610,1781639452000,-819.14,0.00029042,7]
[425261614,1781639452000,-674.76590532,0.00029087,2]
[425261613,1781639452000,-819.14,0.00029074,30]
[425261608,1781639452000,-1101.45,0.00029041,7]
[425261617,1781639452000,-270.0455652,0.0002911,2]
[425261627,1781639452000,-152.0,0.00029154,5]
[425261628,1781639452000,-674.76590532,0.00029158,2]
[425261618,1781639452000,-301.14337869,0.0002911,2]
[425261616,1781639452000,-819.14,0.00029105,2]
[425261620,1781639452000,-5013.77,0.00029132,30]
[425261619,1781639452000,-151.0,0.0002911,2]
[425261621,1781639452000,-2150.76,0.00029132,30]
[425261622,1781639452000,-2124.33,0.00029132,30]
[425261625,1781639452000,-2491.99,0.00029132,30]
[425261623,1781639452000,-4048.95,0.00029132,30]
[425261624,1781639452000,-2549.78,0.00029132,30]
[425261626,1781639452000,-819.14,0.00029137,7]
[425261630,1781639452000,-819.14,0.00029169,30]
[425261631,1781639452000,-674.76590532,0.000292,2]
[425261632,1781639452000,-819.14,0.00029201,2]
[425261633,1781639452000,-366.43163342,0.00029214,7]
[425261629,1781639452000,-674.76590532,0.00029161,2]
[425261634,1781639452000,-341.04925819,0.00029214,7]
[425261576,1781639452000,-500.0,0.00029,2]
[425261612,1781639452000,-674.76590532,0.00029062,2]
[425261611,1781639452000,-674.76590532,0.00029055,2]
[425261635,1781639452000,-596.87243138,0.00029214,7]
[425261605,1781639452000,-195.0,0.00029016,30]
[425261604,1781639452000,-157.0,0.00029016,30]
[425261588,1781639452000,-975.644298,0.00029,7]
[425261578,1781639452000,-505.48,0.00029,2]
[425261577,1781639452000,-500.0,0.00029,2]
[425261580,1781639452000,-241.29707172,0.00029,2]
[425261582,1781639452000,-252.92184,0.00029,7]
[425261581,1781639452000,-1676.17443357,0.00029,2]
[425261583,1781639452000,-252.92184,0.00029,7]
[425261586,1781639452000,-975.644298,0.00029,7]
[425261587,1781639452000,-975.644298,0.00029,7]
[425261585,1781639452000,-252.92184,0.00029,7]
[425261590,1781639452000,-846.480728,0.00029,7]
[425261602,1781639452000,-712.0,0.00029016,30]
[425261584,1781639452000,-252.92184,0.00029,7]
[425261591,1781639452000,-157.0,0.00029002,30]
[425261593,1781639452000,-390.0,0.00029002,30]
[425261603,1781639452000,-163.0,0.00029016,30]
[425261598,1781639452000,-151.0,0.00029016,30]
[425261595,1781639452000,-209.0,0.00029002,30]
[425261592,1781639452000,-154.0,0.00029002,30]
[425261594,1781639452000,-160.0,0.00029002,30]
[425261606,1781639452000,-200.0,0.00029023,2]
[425261597,1781639452000,-819.14,0.0002901,2]
[425261596,1781639452000,-157.0,0.00029002,30]
[425261600,1781639452000,-152.0,0.00029016,30]
[425261589,1781639452000,-975.644298,0.00029,7]
[425261601,1781639452000,-448.0,0.00029016,30]
[425261599,1781639452000,-157.0,0.00029016,30]
[425261679,1781639453000,-525.96730852,0.00029214,7]
[425261675,1781639453000,-590.20821562,0.00029214,7]
[425261674,1781639453000,-360.11423479,0.00029214,7]
[425261671,1781639453000,-498.33126129,0.00029214,7]
[425261669,1781639453000,-217.62012303,0.00029214,7]
[425261667,1781639453000,-377.91454349,0.00029214,7]
[425261670,1781639453000,-165.62709636,0.00029214,7]
[425261678,1781639453000,-629.4346003,0.00029214,7]
[425261666,1781639453000,-231.8739333,0.00029214,7]
[425261668,1781639453000,-232.94769071,0.00029214,7]
[425261665,1781639453000,-453.63995418,0.00029214,7]
[425261681,1781639453000,-488.85722651,0.00029214,7]
[425261673,1781639453000,-273.2465709,0.00029214,7]
[425261677,1781639453000,-477.51255523,0.00029214,7]
[425261676,1781639453000,-284.33453664,0.00029214,7]
[425261672,1781639453000,-373.05599981,0.00029214,5]
[425261682,1781639453000,-522.39557367,0.00029214,7]
[425261684,1781639453000,-450.75698712,0.00029214,7]
[425261687,1781639453000,-548.53316945,0.00029214,7]
[425261688,1781639453000,-496.93661401,0.00029222,7]
[425261683,1781639453000,-487.83381715,0.00029214,5]
[425261685,1781639453000,-488.78102506,0.00029214,7]
[425261663,1781639453000,-570.00272402,0.00029214,7]
[425261686,1781639453000,-497.94177558,0.00029214,7]
[425261680,1781639453000,-389.53076259,0.00029214,7]
[425261664,1781639453000,-225.77708637,0.00029214,7]
[425261649,1781639453000,-564.60503229,0.00029214,7]
[425261662,1781639453000,-451.81868329,0.00029214,7]
[425261689,1781639453000,-574.14091452,0.00029222,7]
[425261636,1781639453000,-363.1300842,0.00029214,7]
[425261639,1781639453000,-454.84843475,0.00029214,2]
[425261637,1781639453000,-452.3531627,0.00029214,7]
[425261638,1781639453000,-386.21741143,0.00029214,7]
[425261640,1781639453000,-525.10261034,0.00029214,7]
[425261643,1781639453000,-202.5632741,0.00029214,7]
[425261641,1781639453000,-384.94036556,0.00029214,7]
[425261642,1781639453000,-505.18904344,0.00029214,7]
[425261644,1781639453000,-247.24026819,0.00029214,7]
[425261646,1781639453000,-218.03027079,0.00029214,7]
[425261645,1781639453000,-175.03080818,0.00029214,7]
[425261647,1781639453000,-490.70970827,0.00029214,7]
[425261648,1781639453000,-203.93419966,0.00029214,7]
[425261651,1781639453000,-574.18689023,0.00029214,7]
[425261654,1781639453000,-227.28306632,0.00029214,7]
[425261650,1781639453000,-194.3508264,0.00029214,7]
[425261655,1781639453000,-234.10149032,0.00029214,7]
[425261653,1781639453000,-249.35108137,0.00029214,2]
[425261652,1781639453000,-282.90527586,0.00029214,2]
[425261658,1781639453000,-571.510616,0.00029214,7]
[425261657,1781639453000,-389.20616706,0.00029214,7]
[425261656,1781639453000,-281.71181807,0.00029214,2]
[425261660,1781639453000,-347.64566293,0.00029214,7]
[425261659,1781639453000,-245.51361955,0.00029214,7]
[425261661,1781639453000,-202.60041276,0.00029214,7]
[425261690,1781639453000,-569.91642868,0.00029222,7]
[425261704,1781639453000,-2124.33,0.00029299,7]
[425261694,1781639453000,-554.2493817,0.00029222,7]
[425261728,1781639453000,-795.82990851,0.00029784,7]
[425261723,1781639453000,-1164.0,0.00029702,30]
[425261721,1781639453000,-908.10074191,0.00029661,7]
[425261722,1781639453000,-2500.0,0.000297,10]
[425261726,1781639453000,-549.64745013,0.00029784,7]
[425261727,1781639453000,-511.57388728,0.00029784,7]
[425261725,1781639453000,-201.98019367,0.00029726,2]
[425261730,1781639453000,-678.52974405,0.00029784,7]
[425261731,1781639453000,-579.32611715,0.00029784,7]
[425261732,1781639453000,-606.46457966,0.00029784,2]
[425261734,1781639453000,-577.41054834,0.00029784,7]
[425261735,1781639453000,-392.09235894,0.00029784,7]
[425261733,1781639453000,-700.13681379,0.00029784,7]
[425261738,1781639453000,-350.06161636,0.00029784,7]
[425261737,1781639453000,-494.48053637,0.00029784,7]
[425261736,1781639453000,-673.58539126,0.00029784,7]
[425261741,1781639453000,-304.10814886,0.00029784,7]
[425261691,1781639453000,-464.60490265,0.00029222,7]
[425261740,1781639453000,-159.92940095,0.00029784,7]
[425261743,1781639453000,-436.06054158,0.00029784,7]
[425261742,1781639453000,-156.95396187,0.00029784,7]
[425261744,1781639453000,-159.95108294,0.00029784,2]
[425261746,1781639453000,-654.27961102,0.00029784,7]
[425261745,1781639453000,-151.11173499,0.00029784,7]
[425261747,1781639453000,-159.62180091,0.00029784,7]
[425261720,1781639453000,-280.03725111,0.00029658,2]
[425261724,1781639453000,-1009.90096836,0.00029726,2]
[425261739,1781639453000,-160.29679251,0.00029784,7]
[425261718,1781639453000,-674.76590532,0.00029596,2]
[425261729,1781639453000,-544.6951263,0.00029784,7]
[425261693,1781639453000,-584.83000016,0.00029222,7]
[425261692,1781639453000,-473.08882906,0.00029222,7]
[425261695,1781639453000,-218.26582501,0.00029222,7]
[425261697,1781639453000,-615.75614884,0.00029222,7]
[425261698,1781639453000,-443.61166121,0.00029222,7]
[425261696,1781639453000,-213.05432423,0.00029222,7]
[425261702,1781639453000,-5013.77,0.00029299,7]
[425261703,1781639453000,-2150.76,0.00029299,7]
[425261701,1781639453000,-593.0,0.00029273,4]
[425261705,1781639453000,-4048.95,0.00029299,7]
[425261700,1781639453000,-819.14,0.00029232,7]
[425261699,1781639453000,-201.79657161,0.00029222,7]
[425261715,1781639453000,-150.0,0.00029534,2]
[425261714,1781639453000,-649.58,0.00029525,2]
[425261706,1781639453000,-2549.78,0.00029299,7]
[425261717,1781639453000,-200.0,0.00029571,2]
[425261719,1781639453000,-674.76590532,0.00029645,2]
[425261707,1781639453000,-2491.99,0.00029299,7]
[425261711,1781639453000,-1000.0,0.000295,2]
[425261709,1781639453000,-500.0,0.00029449,18]
[425261710,1781639453000,-674.76590532,0.00029488,2]
[425261716,1781639453000,-227.0251855,0.00029536,7]
[425261712,1781639453000,-2160.63,0.000295,7]
[425261708,1781639453000,-674.76590532,0.00029301,2]
[425261713,1781639453000,-2886.11,0.000295,7]
[425261773,1781639454000,-226.20959212,0.00029784,7]
[425261774,1781639454000,-426.4711613,0.00029784,7]
[425261770,1781639454000,-165.44881996,0.00029784,2]
[425261771,1781639454000,-602.42491106,0.00029784,7]
[425261772,1781639454000,-760.00363203,0.00029784,7]
[425261776,1781639454000,-680.45993126,0.00029784,7]
[425261775,1781639454000,-451.55417274,0.00029784,7]
[425261777,1781639454000,-463.7478666,0.00029784,7]
[425261781,1781639454000,-245.50810422,0.00029784,7]
[425261782,1781639454000,-331.25419272,0.00029784,7]
[425261779,1781639454000,-566.87181523,0.00029784,7]
[425261785,1781639454000,-559.58399971,0.00029784,5]
[425261783,1781639454000,-747.49689194,0.00029784,7]
[425261787,1781639454000,-178.63142046,0.00029784,2]
[425261784,1781639454000,-201.22052711,0.00029784,7]
[425261786,1781639454000,-546.4931418,0.00029784,7]
[425261769,1781639454000,-405.20082551,0.00029784,7]
[425261790,1781639454000,-418.7324738,0.00029784,7]
[425261780,1781639454000,-165.55061113,0.00029784,7]
[425261767,1781639454000,-731.23872994,0.00029784,7]
[425261756,1781639454000,-377.44229714,0.00029784,7]
[425261768,1781639454000,-521.46849439,0.00029784,7]
[425261788,1781639454000,-540.17135219,0.00029784,7]
[425261753,1781639454000,-222.16208298,0.00029784,7]
[425261752,1781639454000,-765.58252031,0.00029784,7]
[425261748,1781639454000,-407.86839933,0.00029784,7]
[425261750,1781639454000,-752.80670973,0.00029784,7]
[425261751,1781639454000,-388.70165279,0.00029784,7]
[425261755,1781639454000,-498.70216274,0.00029784,2]
[425261759,1781639454000,-410.27510891,0.00029784,7]
[425261778,1781639454000,-311.29510258,0.00029784,7]
[425261754,1781639454000,-565.81055172,0.00029784,2]
[425261761,1781639454000,-583.80925059,0.00029784,7]
[425261758,1781639454000,-468.20298063,0.00029784,7]
[425261760,1781639454000,-563.42363615,0.00029784,2]
[425261764,1781639454000,-246.86913171,0.00029784,7]
[425261765,1781639454000,-233.82829513,0.00029784,7]
[425261762,1781639454000,-762.01415466,0.00029784,7]
[425261763,1781639454000,-173.98411933,0.00029784,7]
[425261766,1781639454000,-491.02723909,0.00029784,7]
[425261757,1781639454000,-454.56613264,0.00029784,7]
[425261799,1781639454000,-465.89538143,0.00029784,7]
[425261749,1781639454000,-232.7376226,0.00029784,7]
[425261792,1781639454000,-636.68340698,0.00029784,7]
[425261812,1781639454000,-738.9991756,0.00029792,7]
[425261814,1781639454000,-426.10864846,0.00029792,7]
[425261818,1781639454000,-377.00578021,0.00029806,7]
[425261822,1781639454000,-527.52,0.00029828,9]
[425261821,1781639454000,-575.37,0.00029828,9]
[425261819,1781639454000,-344.66369854,0.00029806,7]
[425261820,1781639454000,-593.0,0.00029807,4]
[425261824,1781639454000,-592.11,0.00029863,7]
[425261815,1781639454000,-821.00819846,0.00029792,7]
[425261825,1781639454000,-592.11,0.00029863,7]
[425261829,1781639454000,-592.11,0.00029863,7]
[425261828,1781639454000,-592.11,0.00029863,7]
[425261830,1781639454000,-592.11,0.00029863,7]
[425261833,1781639454000,-592.11,0.00029863,7]
[425261827,1781639454000,-592.11,0.00029863,7]
[425261832,1781639454000,-592.11,0.00029863,7]
[425261831,1781639454000,-592.11,0.00029863,7]
[425261791,1781639454000,-568.66907328,0.00029784,7]
[425261823,1781639454000,-592.26,0.00029863,7]
[425261817,1781639454000,-403.59314322,0.00029792,7]
[425261826,1781639454000,-592.11,0.00029863,7]
[425261813,1781639454000,-436.53165001,0.00029792,7]
[425261816,1781639454000,-665.41749181,0.00029792,7]
[425261789,1781639454000,-786.94428749,0.00029784,7]
[425261793,1781639454000,-651.80963534,0.00029784,7]
[425261797,1781639454000,-696.52743156,0.00029784,7]
[425261795,1781639454000,-584.29614389,0.00029784,7]
[425261796,1781639454000,-701.28974469,0.00029784,7]
[425261798,1781639454000,-650.44508954,0.00029784,5]
[425261800,1781639454000,-601.00931615,0.00029784,7]
[425261801,1781639454000,-435.24024606,0.00029784,7]
[425261802,1781639454000,-733.1715376,0.00029784,7]
[425261794,1781639454000,-839.24613373,0.00029784,7]
[425261804,1781639454000,-731.37755927,0.00029784,7]
[425261807,1781639454000,-765.52121936,0.00029792,7]
[425261810,1781639454000,-630.78510541,0.00029792,7]
[425261803,1781639454000,-663.92236743,0.00029784,7]
[425261809,1781639454000,-619.47320354,0.00029792,7]
[425261811,1781639454000,-779.77333355,0.00029792,7]
[425261808,1781639454000,-759.88857157,0.00029792,7]
[425261806,1781639454000,-662.58215201,0.00029792,7]
[425261805,1781639454000,-427.28519817,0.00029784,7]
[425261865,1781639455000,-300.0,0.00029999,10]
[425261859,1781639455000,-80535.34138284,0.000299,2]
[425261856,1781639455000,-151.0,0.00029899,7]
[425261861,1781639455000,-310858.50854684,0.000299,2]
[425261863,1781639455000,-241.98535978,0.0002999,2]
[425261864,1781639455000,-300.0,0.00029999,10]
[425261860,1781639455000,-1627.47,0.000299,7]
[425261868,1781639455000,-606.64,0.00029999,3]
[425261867,1781639455000,-259.98,0.00029999,3]
[425261869,1781639455000,-866.63,0.00029999,3]
[425261874,1781639455000,-77054.90073465,0.0003,5]
[425261862,1781639455000,-674.76590532,0.00029965,2]
[425261870,1781639455000,-62957.77241443,0.0003,2]
[425261871,1781639455000,-108682.35159744,0.0003,5]
[425261879,1781639455000,-800.0,0.0003,2]
[425261880,1781639455000,-2000.0,0.0003,14]
[425261876,1781639455000,-275.37822029,0.0003,2]
[425261875,1781639455000,-10032.57138267,0.0003,5]
[425261873,1781639455000,-993.94218713,0.0003,60]
[425261853,1781639455000,-684.52174,0.00029899,7]
[425261866,1781639455000,-300.0,0.00029999,10]
[425261857,1781639455000,-151.0,0.00029899,7]
[425261834,1781639455000,-592.11,0.00029863,7]
[425261858,1781639455000,-151.0,0.00029899,7]
[425261837,1781639455000,-592.11,0.00029863,7]
[425261881,1781639455000,-1127.07683525,0.0003,2]
[425261838,1781639455000,-592.11,0.00029863,7]
[425261835,1781639455000,-592.11,0.00029863,7]
[425261836,1781639455000,-592.11,0.00029863,7]
[425261840,1781639455000,-592.11,0.00029863,7]
[425261839,1781639455000,-592.11,0.00029863,7]
[425261841,1781639455000,-592.11,0.00029863,7]
[425261843,1781639455000,-592.11,0.00029863,7]
[425261855,1781639455000,-684.521744,0.00029899,7]
[425261842,1781639455000,-592.11,0.00029863,7]
[425261844,1781639455000,-592.11,0.00029863,7]
[425261849,1781639455000,-592.11,0.00029863,7]
[425261846,1781639455000,-592.11,0.00029863,7]
[425261845,1781639455000,-592.11,0.00029863,7]
[425261848,1781639455000,-592.11,0.00029863,7]
[425261850,1781639455000,-612.0,0.00029866,7]
[425261852,1781639455000,-684.52174,0.00029899,7]
[425261851,1781639455000,-151.0,0.00029896,7]
[425261854,1781639455000,-684.52174,0.00029899,7]
[425261847,1781639455000,-592.11,0.00029863,7]
[425261877,1781639455000,-220.66126549,0.0003,2]
[425261872,1781639455000,-11000.0,0.0003,10]
[425261878,1781639455000,-20292.05703107,0.0003,2]
[425261912,1781639455000,-200.0,0.0003,2]
[425261911,1781639455000,-25000.0,0.0003,2]
[425261908,1781639455000,-200.0,0.0003,11]